bitfinex/quotes_SOLUSD_20260211
["timestamp","ask_amount","ask_price","bid_price","bid_amount"]
[1770843303483,12.55035831,79.679,79.651,12.55477018]
[1770843303666,12.5498152,79.683,79.652,1.14197107]
[1770843303859,4.84223104,79.67,79.652,1.14197107]
[1770843304062,4.84223104,79.67,79.65,0.2]
[1770843304063,4.84223104,79.66,79.65,0.2]
[1770843305992,4.84223104,79.68,79.65,0.2]
[1770843306161,4.84223104,79.67,79.65,0.2]
[1770843306570,4.84223104,79.68,79.651,12.55477018]
[1770843306866,4.84223104,79.68,79.652,1.14197107]
[1770843307272,53.8,79.685,79.65,0.2]
[1770843307273,4.84223104,79.69,79.654,1.14197107]
[1770843307587,12.54776664,79.696,79.661,1.14197107]
[1770843307760,12.54573213,79.709,79.671,1.14197107]
[1770843307955,4.84223104,79.72,79.671,1.14197107]
[1770843308157,4.84223104,79.72,79.653,106.71286705]
[1770843308158,53.8,79.724,79.691,1.14197107]
[1770843308385,12.54280956,79.727,79.691,1.14197107]
[1770843309489,12.54280956,79.727,79.693,1.14197107]
[1770843311789,53.8,79.736,79.695,1.14197107]
[1770843311981,12.54091473,79.739,79.701,1.14197107]
[1770843312566,12.54091473,79.739,79.694,43.91798629]
[1770843312567,50.12641623,79.799,79.731,1.14197107]
[1770843312800,12.97444041,79.78,79.741,1.14197107]
[1770843313393,12.97444041,79.77,79.741,1.14197107]
[1770843313910,12.97444041,79.78,79.741,1.14197107]
[1770843314192,12.97444041,79.75,79.71,1.14197107]
[1770843314406,12.97444041,79.74,79.71,1.14197107]
[1770843315393,12.97444041,79.73,79.701,1.14197107]
[1770843315572,53.8,79.748,79.701,1.14197107]
[1770843315773,12.97444041,79.74,79.701,1.14197107]
[1770843316187,12.54091473,79.739,79.703,1.14197107]
[1770843317273,12.97444041,79.74,79.703,1.14197107]
[1770843317472,12.54002212,79.745,79.703,1.14197107]
[1770843318176,12.54002212,79.745,79.704,12.54642176]
[1770843318477,12.54002212,79.745,79.705,1.14197107]
[1770843318478,12.97444041,79.74,79.705,1.14197107]
[1770843319589,43.88995001,79.745,79.705,1.14197107]
[1770843319988,12.54002212,79.745,79.705,1.14197107]
[1770843320181,12.54002212,79.745,79.711,1.14197107]
[1770843320380,12.54002212,79.745,79.713,1.14197107]
[1770843320883,12.54002212,79.745,79.721,1.14197107]
[1770843324097,53.78,79.746,79.721,1.14197107]
[1770843324281,12.53777003,79.759,79.722,12.54358897]
[1770843324480,12.53777003,79.759,79.723,1.14197107]
[1770843324785,12.53777003,79.759,79.725,1.14197107]
[1770843325005,4.61729252,79.774,79.724,12.54327429]
[1770843325006,12.97444041,79.79,79.741,1.14197107]
[1770843325296,53.88,79.783,79.741,1.14197107]
[1770843325697,12.97444041,79.78,79.751,1.14197107]
[1770843325874,53.88,79.783,79.751,1.14197107]
[1770843326079,12.97444041,79.78,79.751,1.14197107]
[1770843327504,12.5346269,79.779,79.741,12.5404754]
[1770843327703,12.97444041,79.75,79.724,12.54313895]
[1770843328003,12.97444041,79.76,79.731,1.14197107]
[1770843328185,12.97444041,79.76,79.725,1.14197107]
[1770843328920,53.92,79.761,79.724,12.54313895]
[1770843328921,53.92,79.761,79.731,1.14197107]
[1770843330606,66.45754288,79.761,79.732,12.54201575]
[1770843330810,12.97444041,79.76,79.733,1.14197107]
[1770843331500,66.45754288,79.761,79.733,1.14197107]
[1770843332006,53.92,79.761,79.733,1.14197107]
[1770843333103,53.92,79.761,79.735,1.14197107]
[1770843333301,12.53761283,79.76,79.735,1.14197107]
[1770843333504,25.51205324,79.76,79.727,1.14197107]
[1770843334382,25.51205324,79.76,79.488,69.90699597]
[1770843334383,12.97444041,79.74,79.711,1.14197107]
[1770843334688,12.97444041,79.74,79.71,12.54532449]
[1770843334689,12.53761283,79.76,79.721,1.14197107]
[1770843335008,12.53761283,79.76,79.731,1.14197107]
[1770843335508,43.87699555,79.769,79.731,1.14197107]
[1770843337812,12.97444041,79.76,79.724,13.68512338]
[1770843338109,12.97444041,79.76,79.725,1.14197107]
[1770843340908,4.84015555,79.76,79.727,1.14197107]
[1770843342318,31.34088857,79.768,79.717,1.14197107]
[1770843342319,4.84015555,79.75,79.717,1.14197107]
[1770843342525,4.84015555,79.75,79.718,1.14197107]
[1770843342904,12.53934218,79.749,79.718,1.14197107]
[1770843345325,4.84015555,79.74,79.701,1.14197107]
[1770843345519,4.84015555,79.74,79.703,1.14197107]
[1770843346518,12.54091473,79.739,79.705,1.14197107]
[1770843346702,106.59777523,79.739,79.69,1.14197107]
[1770843346909,4.84015555,79.72,79.69,1.14197107]
[1770843348527,4.84015555,79.72,79.691,12.54846845]
[1770843349028,4.84015555,79.72,79.692,1.14197107]
[1770843349314,17.38409146,79.72,79.692,1.14197107]
[1770843350801,31.35548614,79.731,79.694,1.14197107]
[1770843350802,12.54337486,79.724,79.694,1.14197107]
[1770843351202,4.84015555,79.72,79.694,1.14197107]
[1770843352915,12.97660048,79.72,79.696,1.14197107]
[1770843355021,12.97652797,79.72,79.696,1.14197107]
[1770843355829,12.97652797,79.72,79.697,13.68949481]
[1770843356827,25.52056083,79.72,79.698,1.14197107]
[1770843357031,12.54339518,79.724,79.698,1.14197107]
[1770843357233,12.54122929,79.737,79.701,1.14197107]
[1770843359224,12.54122929,79.737,79.703,1.14197107]
[1770843359527,12.97652797,79.73,79.703,1.14197107]
[1770843359930,12.54122929,79.737,79.703,1.14197107]
[1770843363031,12.54122929,79.737,79.705,1.14197107]
[1770843365915,12.54122929,79.737,79.707,1.14197107]
[1770843366222,12.54122929,79.737,79.706,12.54610694]
[1770843366223,12.53619827,79.769,79.721,1.14197107]
[1770843366412,66.61619827,79.769,79.721,1.14197107]
[1770843366730,66.61619827,79.769,79.708,54.4]
[1770843366731,66.61619827,79.769,79.731,1.14197107]
[1770843368941,54.08,79.769,79.741,1.14197107]
[1770843369237,6.55212437,79.782,79.751,1.14197107]
[1770843369428,12.53396032,79.784,79.751,1.14197107]
[1770843369628,66.69256088,79.793,79.761,1.14197107]
[1770843370748,54.16,79.793,79.771,1.14197107]
[1770843371444,54.16,79.793,79.772,1.14197107]
[1770843372244,54.16,79.793,79.773,1.14197107]
[1770843372433,12.53258472,79.792,79.766,1.14197107]
[1770843374540,12.53258472,79.792,79.768,1.14197107]
[1770843374745,12.53258472,79.792,79.771,1.14197107]
[1770843376147,4.83469484,79.79,79.751,1.14197107]
[1770843376443,12.53258472,79.792,79.751,1.14197107]
[1770843377320,12.53258472,79.792,79.761,1.14197107]
[1770843377544,54.16,79.793,79.77,4.83469484]
[1770843377841,54.16,79.793,79.771,1.14197107]
[1770843378142,54.22,79.807,79.773,1.14197107]
[1770843379741,12.53038618,79.806,79.775,1.14197107]
[1770843380536,43.85635164,79.806,79.775,1.14197107]
[1770843381646,12.53038618,79.806,79.776,12.53509827]
[1770843381952,12.53038618,79.806,79.777,1.14197107]
[1770843383347,4.83469484,79.8,79.761,1.14197107]
[1770843383729,12.53148535,79.799,79.763,1.14197107]
[1770843386958,12.53148535,79.799,79.765,1.14197107]
[1770843387147,12.53148535,79.799,79.764,12.5369841]
[1770843387148,4.83469484,79.79,79.753,1.14197107]
[1770843387356,54.34,79.789,79.753,1.14197107]
[1770843391461,66.87314601,79.789,79.76,4.83469484]
[1770843391661,66.87314601,79.789,79.761,1.14197107]
[1770843392539,54.34,79.789,79.761,1.14197107]
[1770843393356,54.34,79.789,79.76,4.83469484]
[1770843393357,54.34,79.789,79.781,1.14197107]
[1770843393548,0.1,79.81,79.781,1.14197107]
[1770843393549,12.52991517,79.809,79.781,1.14197107]
[1770843393755,54.4,79.803,79.781,1.14197107]
[1770843394665,4.83469484,79.8,79.771,1.14197107]
[1770843395539,4.83469484,79.79,79.761,1.14197107]
[1770843395754,12.53305593,79.789,79.763,1.14197107]
[1770843396152,43.86569576,79.789,79.751,1.14197107]
[1770843396363,43.86569576,79.789,79.752,1.14197107]
[1770843397467,54.4,79.788,79.754,1.14197107]
[1770843398359,43.86569576,79.789,79.756,1.14197107]
[1770843398360,12.53352718,79.786,79.756,1.14197107]
[1770843398862,4.83469484,79.78,79.747,1.14197107]
[1770843399763,54.4,79.779,79.747,1.14197107]
[1770843400265,43.86734514,79.786,79.751,1.14197107]
[1770843400459,12.53431268,79.781,79.752,1.14197107]
[1770843403569,43.86734514,79.786,79.754,1.14197107]
[1770843408146,43.86734514,79.786,79.756,1.14197107]
[1770843408652,54.44,79.787,79.761,1.14197107]
[1770843408853,12.53352718,79.786,79.761,1.14197107]
[1770843409348,54.44,79.787,79.761,1.14197107]
[1770843410048,12.53352718,79.786,79.761,1.14197107]
[1770843412484,12.53352718,79.786,79.744,31.35022867]
[1770843412485,4.83469484,79.78,79.752,1.14197107]
[1770843416059,12.5346269,79.779,79.741,12.54060019]
[1770843416276,4.83469484,79.77,79.738,1.14197107]
[1770843416483,4.83469484,79.77,79.74,1.14197107]
[1770843416779,54.8,79.769,79.74,1.14197107]
[1770843417078,54.8,79.768,79.74,1.14197107]
[1770843417869,54.8,79.768,79.741,1.14197107]
[1770843418267,54.8,79.768,79.74,4.83881573]
[1770843418268,54.8,79.768,79.743,1.14197107]
[1770843418457,12.53651259,79.767,79.743,1.14197107]
[1770843420586,12.53651259,79.767,79.745,1.14197107]
[1770843421295,54.8,79.768,79.745,1.14197107]
[1770843422559,67.33643586,79.768,79.747,1.14197107]
[1770843423182,12.53643586,79.768,79.747,1.14197107]
[1770843424286,12.5346269,79.779,79.747,1.14197107]
[1770843424590,54.9,79.771,79.747,1.14197107]
[1770843424788,54.9,79.771,79.74,4.83881573]
[1770843424966,54.9,79.771,79.725,1.14197107]
[1770843424967,4.83881573,79.76,79.725,1.14197107]
[1770843425972,4.83881573,79.76,79.726,1.14197107]
[1770843426881,12.53777003,79.759,79.726,1.14197107]
[1770843427788,12.53777003,79.759,79.714,31.36178362]
[1770843427789,12.53777003,79.759,79.728,1.14197107]
[1770843430080,43.88219511,79.759,79.728,1.14197107]
[1770843432293,4.83881573,79.76,79.729,1.14197107]
[1770843433290,4.83881573,79.75,79.729,1.14197107]
[1770843433493,4.83881573,79.76,79.729,1.14197107]
[1770843436891,43.8761439,79.77,79.731,1.14197107]
[1770843437089,4.83881573,79.76,79.731,1.14197107]
[1770843437388,48.71495963,79.77,79.731,1.14197107]
[1770843437594,54.96,79.769,79.731,1.14197107]
[1770843438297,12.53635543,79.768,79.732,12.54201575]
[1770843438602,12.53635543,79.768,79.733,1.14197107]
[1770843439394,12.53635543,79.768,79.734,12.54170115]
[1770843439603,12.53635543,79.768,79.735,1.14197107]
[1770843441292,12.53635543,79.768,79.736,12.54138657]
[1770843441524,12.53635543,79.768,79.737,1.14197107]
[1770843441994,4.83881573,79.77,79.737,1.14197107]
[1770843442191,12.53576798,79.772,79.737,1.14197107]
[1770843442372,12.53576798,79.772,79.741,1.14197107]
[1770843442795,54.98,79.774,79.741,1.14197107]
[1770843443002,12.53556967,79.773,79.741,1.14197107]
[1770843444096,4.83881573,79.77,79.741,1.14197107]
[1770843444396,54.98,79.777,79.743,1.14197107]
[1770843445482,54.98,79.788,79.743,1.14197107]
[1770843446702,12.53337009,79.787,79.751,1.14197107]
[1770843447399,12.53337009,79.787,79.744,43.89044943]
[1770843447400,6.55042137,79.804,79.771,1.14197107]
[1770843447604,12.52991517,79.809,79.781,1.14197107]
[1770843448802,12.52991517,79.809,79.751,4.61729252]
[1770843448803,0.1,79.81,79.783,1.14197107]
[1770843448990,17.46868094,79.81,79.783,1.14197107]
[1770843449606,48.79307637,79.81,79.777,1.14197107]
[1770843450303,0.1,79.81,79.791,1.14197107]
[1770843450815,0.1,79.81,79.781,1.14197107]
[1770843451483,0.1,79.81,79.79,4.83881573]
[1770843451705,0.1,79.81,79.791,1.14197107]
[1770843452079,0.1,79.82,79.801,1.14197107]
[1770843453507,0.1,79.82,79.802,12.53101426]
[1770843453703,0.1,79.82,79.795,1.14197107]
[1770843453888,0.1,79.82,79.794,12.53217467]
[1770843454289,0.1,79.82,79.795,1.14197107]
[1770843454886,0.1,79.82,79.801,1.14197107]
[1770843455197,0.1,79.82,79.793,1.14197107]
[1770843455403,0.1,79.82,79.795,1.14197107]
[1770843457005,4.93881573,79.82,79.781,12.53431268]
[1770843457185,4.93881573,79.82,79.782,1.14197107]
[1770843457385,4.93881573,79.82,79.791,1.14197107]
[1770843457806,4.93881573,79.82,79.782,1.14197107]
[1770843459190,111.85179761,79.819,79.76,1.14197107]
[1770843459389,4.83881573,79.79,79.76,1.14197107]
[1770843459588,4.83881573,79.8,79.76,1.14197107]
[1770843459987,4.83881573,79.8,79.761,1.14197107]
[1770843460393,4.83881573,79.81,79.771,1.14197107]
[1770843461417,12.52991517,79.809,79.773,1.14197107]
[1770843462608,12.52991517,79.809,79.775,1.14197107]
[1770843464028,4.83881573,79.8,79.761,1.14197107]
[1770843464210,106.49360411,79.817,79.761,1.14197107]
[1770843464211,4.83881573,79.79,79.761,1.14197107]
[1770843464716,4.83881573,79.78,79.755,1.14197107]
[1770843467492,54.92,79.791,79.756,1.14197107]
[1770843467493,17.37171458,79.79,79.756,1.14197107]
[1770843468422,4.83881573,79.79,79.756,1.14197107]
[1770843469499,4.83881573,79.79,79.757,12.53808443]
[1770843469699,4.83881573,79.79,79.758,1.14197107]
[1770843470115,54.92,79.791,79.761,1.14197107]
[1770843470723,12.53148535,79.799,79.761,1.14197107]
[1770843472217,4.83881573,79.79,79.763,1.14197107]
[1770843472398,4.83881573,79.8,79.763,1.14197107]
[1770843473122,12.53085723,79.803,79.771,1.14197107]
[1770843473300,12.53036306,79.807,79.771,1.14197107]
[1770843473906,54.94,79.809,79.771,1.14197107]
[1770843474216,54.94,79.809,79.772,43.87504387]
[1770843474417,54.94,79.809,79.773,1.14197107]
[1770843474619,4.93881573,79.83,79.79,4.83881573]
[1770843474817,0.1,79.83,79.801,1.14197107]
[1770843475726,12.52726466,79.826,79.801,1.14197107]
[1770843475906,17.46555668,79.83,79.801,1.14197107]
[1770843476722,17.46555668,79.83,79.803,1.14197107]
[1770843477021,12.62674095,79.83,79.803,1.14197107]
[1770843477414,17.46555668,79.83,79.803,1.14197107]
[1770843477708,4.93881573,79.82,79.791,12.53274178]
[1770843478606,0.1,79.82,79.801,1.14197107]
[1770843480428,0.1,79.82,79.794,1.14197107]
[1770843481010,4.93066169,79.82,79.794,1.14197107]
[1770843481324,4.93066169,79.82,79.787,12.5333451]
[1770843481511,4.93066169,79.82,79.788,1.14197107]
[1770843483218,4.93066169,79.82,79.789,12.53305593]
[1770843483417,0.1,79.82,79.79,1.14197107]
[1770843483619,0.1,79.82,79.791,1.14197107]
[1770843483928,0.1,79.82,79.801,1.14197107]
[1770843485926,0.1,79.82,79.768,100.29068996]
[1770843485927,0.1,79.83,79.811,1.0991668]
[1770843487025,0.1,79.84,79.821,1.0991668]
[1770843487403,6.54680319,79.859,79.821,1.0991668]
[1770843487825,0.066708,79.865,79.832,1.0991668]
[1770843488024,12.52050232,79.869,79.832,1.0991668]
[1770843488325,0.06668681,79.868,79.832,1.0991668]
[1770843489210,4.83066169,79.86,79.832,1.0991668]
[1770843489610,0.06666586,79.861,79.832,1.0991668]
[1770843489811,0.06666586,79.861,79.831,12.52646215]
[1770843489812,12.58716818,79.869,79.841,1.0991668]
[1770843490308,0.06664515,79.868,79.841,1.0991668]
[1770843491841,0.06687364,79.858,79.819,52.96]
[1770843492023,12.52207014,79.859,79.812,31.32354892]
[1770843492024,0.06709951,79.839,79.812,1.0991668]
[1770843492218,4.83066169,79.83,79.806,12.53038618]
[1770843493140,4.83066169,79.83,79.807,1.0991668]
[1770843493324,0.06732279,79.838,79.807,1.0991668]
[1770843493633,0.06732279,79.838,79.791,31.33160022]
[1770843493634,0.06732279,79.838,79.809,1.0991668]
[1770843494044,4.83066169,79.83,79.804,12.53066237]
[1770843494234,4.83066169,79.83,79.805,1.0991668]
[1770843495933,0.0675435,79.831,79.805,1.0991668]
[1770843496138,0.06797735,79.829,79.806,12.53038618]
[1770843496340,4.83066169,79.83,79.807,1.0991668]
[1770843496730,0.06797735,79.834,79.807,1.0991668]
[1770843496932,4.83066169,79.82,79.794,1.0991668]
[1770843497932,0.06819054,79.822,79.796,1.0991668]
[1770843498133,12.52745149,79.825,79.796,1.0991668]
[1770843498332,12.52680128,79.829,79.796,1.0991668]
[1770843499051,54.76,79.83,79.8,4.83066169]
[1770843499341,12.52618732,79.833,79.801,1.0991668]
[1770843499944,0.06860961,79.838,79.803,1.0991668]
[1770843501739,0.06860961,79.838,79.805,1.10350947]
[1770843502051,54.8,79.848,79.811,1.10350947]
[1770843502743,0.06941925,79.847,79.811,1.10350947]
[1770843503942,0.06961588,79.846,79.813,1.10350947]
[1770843505853,0.06961588,79.846,79.815,1.10350947]
[1770843506948,4.83066169,79.84,79.815,1.10350947]
[1770843508551,54.8,79.848,79.799,1.09197107]
[1770843508552,0.07074913,79.829,79.799,1.09197107]
[1770843508757,12.52520697,79.839,79.799,1.09197107]
[1770843508956,54.82,79.838,79.801,1.09197107]
[1770843509256,0.07093049,79.839,79.811,1.09197107]
[1770843509454,4.83066169,79.84,79.811,1.09197107]
[1770843510963,4.83066169,79.84,79.813,1.09197107]
[1770843511258,12.52520697,79.839,79.813,1.09197107]
[1770843511554,4.83066169,79.84,79.813,1.09197107]
[1770843511939,12.52520697,79.839,79.813,1.09197107]
[1770843513844,12.524954,79.841,79.815,1.09197107]
[1770843516144,43.82450164,79.864,79.821,1.09197107]
[1770843516345,0.07214298,79.859,79.821,1.09197107]
[1770843517671,4.90297001,79.85,79.821,1.09197107]
[1770843517964,0.07230832,79.849,79.821,1.09197107]
[1770843518361,0.07247177,79.839,79.816,12.52881627]
[1770843518555,54.86,79.846,79.817,1.09197107]
[1770843518764,12.52297705,79.854,79.821,1.09197107]
[1770843521267,0.07295094,79.857,79.823,1.09197107]
[1770843521667,12.52207014,79.859,79.823,1.09197107]
[1770843522554,12.59517714,79.859,79.823,1.09197107]
[1770843522957,43.90035251,79.859,79.825,1.09197107]
[1770843523159,4.83066169,79.85,79.825,1.09197107]
[1770843523562,12.6204138,79.87,79.831,1.09197107]
[1770843523765,0.1,79.87,79.841,1.09197107]
[1770843524664,0.1,79.87,79.851,1.09197107]
[1770843524875,59.83066169,79.89,79.863,1.04197107]
[1770843524876,55.0,79.89,79.863,1.04197107]
[1770843525048,0.1,79.9,79.881,1.01970727]
[1770843527074,0.1,79.9,79.883,1.01970727]
[1770843527876,0.1,79.92,79.891,1.01970727]
[1770843528067,0.1,79.92,79.882,43.81462656]
[1770843528068,0.1,79.93,79.901,1.01970727]
[1770843528269,0.1,79.93,79.911,1.01970727]
[1770843529155,0.1,79.93,79.913,1.01970727]
[1770843529561,0.1,79.93,79.894,52.56]
[1770843529562,1.0656817,79.919,79.862,4.61729252]
[1770843529768,1.0656817,79.919,79.881,1.01970727]
[1770843529957,0.1,79.93,79.901,1.01970727]
[1770843530166,1.1656817,79.93,79.901,1.01970727]
[1770843530468,0.1,79.93,79.901,1.01970727]
[1770843530666,1.04854579,79.929,79.881,1.03975641]
[1770843530870,1.04854579,79.919,79.881,1.03975641]
[1770843531072,1.04854579,79.919,79.89,4.83066169]
[1770843531282,1.04854579,79.917,79.891,1.03975641]
[1770843531954,1.04854579,79.917,79.883,1.03975641]
[1770843532154,1.04854579,79.909,79.872,1.03975641]
[1770843532378,1.04854579,79.909,79.881,1.03975641]
[1770843533070,13.56137143,79.918,79.881,1.03975641]
[1770843533373,12.61095535,79.93,79.901,1.03975641]
[1770843533758,12.61095535,79.93,79.892,43.80914234]
[1770843533759,0.1,79.93,79.911,1.03975641]
[1770843535375,0.1,79.93,79.9,4.83066169]
[1770843535376,1.04854579,79.929,79.902,1.03975641]
[1770843537485,1.04854579,79.929,79.903,13.55493105]
[1770843538064,1.04854579,79.929,79.904,1.03975641]
[1770843538870,1.04854579,79.927,79.892,1.03975641]
[1770843540390,43.78941046,79.928,79.633,90.87909477]
[1770843540391,1.04854579,79.909,79.88,4.83066169]
[1770843540567,1.04854579,79.919,79.89,4.83066169]
[1770843541081,1.04854579,79.919,79.89,4.81934082]
[1770843541988,1.04854579,79.917,79.88,4.81934082]
[1770843542288,1.04854579,79.899,79.862,13.56126623]
[1770843542489,1.04854579,79.879,79.847,13.56370846]
[1770843542667,1.04854579,79.879,79.847,1.03975641]
[1770843542984,56.32,79.898,79.81,0.2]
[1770843542985,1.04854579,79.877,79.842,12.52469526]
[1770843543197,1.04854579,79.877,79.843,1.03975641]
[1770843543766,1.04854579,79.874,79.843,1.03975641]
[1770843544268,30.0,79.875,79.851,1.03975641]
[1770843544469,31.04854579,79.875,79.851,1.03975641]
[1770843544664,30.0,79.872,79.851,1.03975641]
[1770843545089,1.04854579,79.878,79.852,13.56292427]
[1770843545281,1.04854579,79.878,79.846,1.03975641]
[1770843545479,1.04854579,79.859,79.828,1.03975641]
[1770843545792,1.04854579,79.849,79.828,1.03975641]
[1770843546094,1.04854579,79.839,79.828,1.03975641]
[1770843546276,30.0,79.856,79.811,12.52960118]
[1770843546277,1.04854579,79.848,79.811,12.52960118]
[1770843546472,1.04854579,79.839,79.811,12.52960118]
[1770843547870,1.04854579,79.851,79.82,12.92383419]
[1770843548074,12.52269738,79.855,79.82,12.92383419]
[1770843548281,1.04854579,79.849,79.821,1.03975641]
[1770843548879,31.04854579,79.856,79.821,1.03975641]
[1770843549074,1.04854579,79.855,79.821,1.03975641]
[1770843549396,31.04854579,79.856,79.823,1.03975641]
[1770843550175,1.04854579,79.854,79.823,1.03975641]
[1770843550585,1.04854579,79.829,79.81,0.2]
[1770843551296,1.04854579,79.827,79.81,0.2]
[1770843552380,1.04854579,79.819,79.81,0.2]
[1770843552889,1.04854579,79.819,79.783,1.03975641]
[1770843553194,12.92383419,79.82,79.783,1.03975641]
[1770843553497,1.04854579,79.799,79.769,12.53619827]
[1770843554117,1.04854579,79.807,79.771,1.03975641]
[1770843554299,1.04854579,79.799,79.769,43.87669395]
[1770843554596,1.04854579,79.799,79.77,1.03975641]
[1770843554781,1.04854579,79.799,79.769,43.87669395]
[1770843554979,1.04854579,79.789,79.766,12.53656283]
[1770843555289,12.92383419,79.79,79.712,1.03975641]
[1770843555290,5.36086188,79.771,79.712,1.03975641]
[1770843555478,1.04854579,79.739,79.703,1.03975641]
[1770843555671,1.04854579,79.739,79.69,17.52]
[1770843555672,1.04854579,79.749,79.711,1.03975641]
[1770843555895,1.04854579,79.729,79.701,1.03975641]
[1770843556201,12.92383419,79.72,79.691,1.03975641]
[1770843556794,1.04854579,79.729,79.691,1.03975641]
[1770843557476,4.61729252,79.77,79.68,13.12383419]
[1770843557477,1.04854579,79.699,79.68,0.2]
[1770843557987,1.04854579,79.712,79.681,12.55004329]
[1770843558297,12.92383419,79.71,79.681,13.5897997]
[1770843558795,13.97237998,79.72,79.682,1.03975641]
[1770843558988,1.04854579,79.689,79.64,13.12383419]
[1770843559194,12.92383419,79.67,79.646,12.55555184]
[1770843559390,1.04854579,79.683,79.652,1.03975641]
[1770843559691,1.04854579,79.683,79.654,1.03975641]
[1770843560092,1.04854579,79.679,79.65,0.2]
[1770843560289,1.04854579,79.679,79.651,13.59452659]
[1770843560494,12.5489896,79.688,79.652,1.03975641]
[1770843560997,12.92383419,79.68,79.652,1.03975641]
[1770843561197,1.02968786,79.699,79.661,1.02660731]
[1770843561400,1.02968786,79.699,79.662,12.55303657]
[1770843561584,1.02968786,79.705,79.663,1.02660731]
[1770843561900,1.02968786,79.699,79.663,1.02660731]
[1770843562099,1.02968786,79.689,79.652,12.55461256]
[1770843562394,1.02968786,79.689,79.653,1.02660731]
[1770843562597,1.02968786,79.679,79.651,12.55477018]
[1770843563195,1.02968786,79.698,79.652,1.02660731]
[1770843563400,1.02968786,79.698,79.661,1.02660731]
[1770843563583,1.02968786,79.696,79.663,1.02660731]
[1770843564206,12.92383419,79.7,79.662,12.55303657]
[1770843564207,1.02968786,79.729,79.69,12.92383419]
[1770843564508,1.02968786,79.729,79.691,1.02660731]
[1770843565506,1.02968786,79.725,79.692,12.54831099]
[1770843566812,1.02968786,79.746,79.711,1.02660731]
[1770843566983,1.02968786,79.746,79.73,12.92383419]
[1770843567186,12.53737592,79.762,79.73,12.92383419]
[1770843567390,1.02968786,79.761,79.73,12.92383419]
[1770843568295,12.53635993,79.768,79.74,12.92383419]
[1770843568495,100.21717136,79.827,79.76,12.92383419]
[1770843568496,0.99565177,79.781,79.76,12.92383419]
[1770843568692,0.99565177,79.781,79.725,43.90090937]
[1770843568693,0.99565177,79.803,79.77,12.92383419]
[1770843569400,0.99565177,79.779,79.73,12.92383419]
[1770843569610,0.99565177,79.769,79.75,12.92383419]
[1770843569788,0.99565177,79.768,79.731,12.54217305]
[1770843570105,0.99565177,79.768,79.725,53.88]
[1770843570309,0.99565177,79.768,79.73,12.92383419]
[1770843570904,0.99565177,79.768,79.705,4.61729252]
[1770843570905,0.99565177,79.749,79.71,14.00244116]
[1770843571413,0.99565177,79.759,79.721,1.07860697]
[1770843572511,0.99565177,79.757,79.721,1.07860697]
[1770843572918,0.99565177,79.749,79.715,12.5445631]
[1770843573603,0.99565177,79.749,79.716,1.07860697]
[1770843574601,43.88274529,79.758,79.712,53.86]
[1770843574602,0.99565177,79.757,79.721,1.07860697]
[1770843575512,0.99565177,79.784,79.741,1.07860697]
[1770843575705,0.99565177,79.779,79.743,1.07860697]
[1770843576406,0.99565177,79.779,79.75,14.00244116]
[1770843576626,0.99565177,79.779,79.751,12.53902772]
[1770843577392,55.88,79.803,79.77,12.92383419]
[1770843577393,0.99565177,79.801,79.77,12.92383419]
[1770843577596,0.99565177,79.799,79.751,44.96520399]
[1770843577812,0.99565177,79.789,79.751,12.53902772]
[1770843578113,0.99565177,79.789,79.76,12.92383419]
[1770843578489,0.99565177,79.789,79.751,12.53902772]
[1770843578898,0.99565177,79.779,79.746,12.5398139]
[1770843579510,0.99565177,79.779,79.75,12.92383419]
[1770843580444,50.10603763,79.831,79.74,12.54074202]
[1770843580445,13.91948596,79.81,79.771,1.07860697]
[1770843580737,0.99565177,79.807,79.77,12.92383419]
[1770843580911,0.99565177,79.805,79.771,12.53588396]
[1770843581105,0.99565177,79.805,79.78,12.92383419]
[1770843581331,0.99565177,79.811,79.78,12.92383419]
[1770843581534,0.99565177,79.789,79.702,1.07860697]
[1770843581702,12.92383419,79.8,79.7,12.92383419]
[1770843581703,0.99565177,79.739,79.7,12.92383419]
[1770843581903,12.92383419,79.73,79.693,1.07860697]
[1770843583012,12.54248767,79.729,79.695,1.07860697]
[1770843583214,12.92383419,79.73,79.695,1.07860697]
[1770843583414,12.92383419,79.74,79.701,1.07860697]
[1770843584031,12.92383419,79.73,79.701,1.07860697]
[1770843584330,0.99565177,79.739,79.701,1.07860697]
[1770843584934,15.9013376,79.788,79.721,1.07860697]
[1770843585120,12.92383419,79.76,79.731,13.62078002]
[1770843585433,12.92383419,79.76,79.731,1.07860697]
[1770843585635,0.99565177,79.759,79.731,13.62078002]
[1770843585830,0.99565177,79.759,79.731,1.07860697]
[1770843586338,0.99565177,79.759,79.731,13.62078002]
[1770843586540,0.99565177,79.759,79.731,1.07860697]
[1770843587014,12.53792722,79.758,79.731,1.07860697]
[1770843587211,0.99565177,79.759,79.732,12.54201575]
[1770843587420,12.92383419,79.76,79.732,12.54201575]
[1770843587622,12.92383419,79.77,79.733,1.07860697]